Workbook

Sheet dálnice
A1: provoz na dálnici, popis chování | B1: četnost | C1: relativní četnost v % | D1: četnost dle druhu vozidla
A2: překračování rychlosti o více než 20 km/h v místech snížené rychlosti na dálnici | B2: =2 -> 2 | C2: =100*B2/B7 -> 14.28571429 | D2: 2xOA
A3: nebezpečné a bezohledné předjíždění (kličkování, předjíždění přes plnou čáru, horizont, kolony atd.) | B3: =1+3+2 -> 6 | C3: =100*B3/B7 -> 42.85714286 | D3: 1x M, 5x OA
A4: předjetí zprava | B4: =2 -> 2 | C4: =100*B4/B7 -> 14.28571429 | D4: 1x PČR, 1X OA
A5: nedodržování bezpečné vzdálenosti | B5: =3 -> 3 | C5: =100*B5/B7 -> 21.42857143 | D5: 3XOA
A6: pomalá/zmatená jízda, zbytečná jízda v levém jízdním pruhu | B6: =1 -> 1 | C6: =100*B6/B7 -> 7.142857143 | D6: 1x OA
A7: celkem | B7: =SUM(B2:B6) -> 14 | C7: =SUM(C2:C6) -> 100

Sheet silnice
A1: provoz na silnici, popis chování | B1: četnost | C1: relativní četnost v % | D1: četnost dle druhu vozidla
A2: překračování rychlosti o více než 15 km/h v obci | B2: =2 -> 2 | C2: =100*B2/B11 -> 9.523809524 | D2: 2xoa
A3: překračování rychlosti o více než 20 km/h | B3: 2 | C3: =100*B3/B11 -> 9.523809524 | D3: 2x OA
A4: jízda na červenou | B4: 1 | C4: =100*B4/B11 -> 4.761904762 | D4: 1xOA
A5: nezastavení na stopce | B5: 1 | C5: =100*B5/B11 -> 4.761904762 | D5: 1XOA
A6: nedání přednosti zprava/protijedoucímu vozidlu | B6: 1 | C6: =100*B6/B11 -> 4.761904762 | D6: 1xOA
A7: nebezpečné a bezohledné předjíždění (kličkování, předjíždění přes plnou čáru,horizont, kolony atd.) | B7: =9+1+2+1+1 -> 14 | C7: =100*B7/B11 -> 66.66666667 | D7: 2x M, 11x OA, 1x D
A8: předjetí zprava | B8: 0 | C8: =100*B8/B11 -> 0
A9: nedodržování bezpečné vzdálenosti | B9: 0 | C9: =100*B9/B11 -> 0
A10: pomalá/zmatená jízda, zbytečná jízda v levém jízdním pruhu | B10: 0 | C10: =100*B10/B11 -> 0
A11: celkem | B11: =SUM(B2:B10) -> 21 | C11: =100*B11/B11 -> 100

Sheet dohromady silnice+dalnice
A1: popis chování | B1: četnost | C1: relativní četnost v % | D1: četnost dle druhu vozidla
A2: překračování rychlosti celkem | B2: 6 | C2: =100*B2/B10 -> 17.14285714 | D2: 6xOA
A3: nebezpečné a bezohledné předjíždění (kličkování, předjíždění přes plnou čáru, horizont, kolony atd.) | B3: 20 | C3: =100*B3/B10 -> 57.14285714 | D3: 3x M, 16x OA, 1x PČR
A4: jízda na červenou | B4: 1 | C4: =100*B4/B10 -> 2.857142857 | D4: 1xOA
A5: nezastavení na stopce | B5: 1 | C5: =100*B5/B10 -> 2.857142857 | D5: 1xOA
A6: nedání přednosti zprava/protijedoucímu vozidlu | B6: 1 | C6: =100*B6/B10 -> 2.857142857 | D6: 1xOA
A7: předjetí zprava | B7: 2 | C7: =100*B7/B10 -> 5.714285714 | D7: 1x PČR, 1x OA
A8: nedodržování bezpečné vzdálenosti | B8: 3 | C8: =100*B8/B10 -> 8.571428571 | D8: 3x OA
A9: pomalá/zmatená jízda, zbytečná jízda v levém jízdním pruhu | B9: 1 | C9: =100*B9/B10 -> 2.857142857 | D9: 1x OA
A10: celkem | B10: =SUM(B2:B9) -> 35 | C10: =100*B10/B10 -> 100
